Workbook

Sheet Inputs
A1: NHS Pension Scheme 2015 (NHSPS 2015) | H1: ='Pension cont, income tax, NI'!C10 -> 0.051
A2: Opt Out Calculator | E2: ='Pension cont, income tax, NI'!C11 -> 0.057
A3: For the tax year 2023 to 2024 | E3: ='Pension cont, income tax, NI'!C12 -> 0.061
A4: (From 6 April 2023 after the reduction in income tax additional rate threshold) | E4: ='Pension cont, income tax, NI'!C16 -> 0.098
E5: ='Pension cont, income tax, NI'!C18 -> 0.116
A6: Annual salary | E6: ='Pension cont, income tax, NI'!C19 -> 0.125
A7: Actual pensionable earnings | E7: ='Pension cont, income tax, NI'!C20 -> 0.135
A9: Pension contribution rate | E9: (If this is left blank, the calculator will look up the contribution rate based on the salary details provided above.)
A11: Tax code | E11: (If this is left blank, the calculator will assume a standard tax code (such as 1257L).)
A14: Notes:
A15: - | B15: The calculator only allows for tax codes L, K, BR, D0, D1, NT and 0T.
A16: - | B16: The calculator assumes that the tax code put in will allow for the income-related reduction to the Personal Allowance for earnings over £100,000.
A17: - | B17: The calculator does not allow for people born before 6 April 1948 who are eligible for a Personal Allowance above the basic level.
A18: - | B18: The calculator considers the cost of scheme contributions compared to opting out allowing for income tax and NI contributions.
A19: - | B19: The calculator does not consider any Annual Allowance or Lifetime Allowance tax charges that may be incurred as a result of scheme membership.
B20: Calculator updated February 2023

Sheet Pension cont, income tax, NI (hidden)
A1: Government Actuary's Department
A2: =IF(title="> Enter workbook title here","Enter workbook title in Cover sheet",title) -> 
A3: Interim calculation to derive the pension contributions, income tax and NI contribution
A4: =CELL("filename",A1) -> C:\Users\eleca\AppData\Local\Microsoft\Windows\INetCache\Content.Outlook\MP3XZV8N\[Opt-Out Calculator 2023-24 (003).xlsm]Pension cont, income tax, NI
A6: Contribution rates and bands for year 2023/24
A7: Copied from | B7: NHS Pension Scheme – changes to member contributions from 1 October 2022 | NHS Employers
A8: Lower limit | B8: Upper limit | C8: Cont rate
A10: 0 | B10: 13246 | C10: 0.051
A11: =B10+1 -> 13247 | B11: 16831 | C11: 0.057
A12: =B11+1 -> 16832 | B12: 22878 | C12: 0.061
A13: =B12+1 -> 22879 | B13: 23948 | C13: 0.068
A14: =B13+1 -> 23949 | B14: =28223 -> 28223 | C14: 0.077
A15: 28224 | B15: 29179 | C15: 0.088
A16: 29180 | B16: 43805 | C16: 0.098
A17: 43806 | B17: 49245 | C17: 0.1
A18: 49246 | B18: 56163 | C18: 0.116
A19: 56164 | B19: 72030 | C19: 0.125
A20: 72031 | B20: 999999.99 | C20: 0.135
A21: Member contribution rate | D21: =IF(Inputs!$D$9="",VLOOKUP(ActPay2016,'Pension cont, income tax, NI'!$A$10:$C$20,3,TRUE),Inputs!$D$9) -> 0.051
A22: Contribution payable | D22: =IF(Inputs!$D$9="",VLOOKUP(ActPay2016,'Pension cont, income tax, NI'!$A$10:$C$20,3,TRUE),Inputs!$D$9)*ActPay2016 -> 0 | E22: =D22/12 -> 0
A24: Actual salary | D24: =ActPay2016 -> 0
A25: Actual salary net of contribution | D25: =ActPay2016-D22 -> 0
A27: Employer contribution rate | C27: 0.206 | D27: Copied from | E27: https://assets.publishing.service.gov.uk/government/uploads/system/uploads/attachment_data/file/783411/nhsps-consultation-response.pdf
A28: Employer contribution | C28: =C27*ActPay2016 -> 0
A31: Income tax rates and taxable bands for year 2023/24
A32: Copied from: | C32: Annex A: rates and allowances - GOV.UK (www.gov.uk)
A33: Additional rate change: | C33: AUTUMN STATEMENT 2022 (publishing.service.gov.uk)
A34: Tax code | C34: =IF(ISNUMBER(SEARCH("BR",Inputs!D11))=TRUE,Basic,IF(ISNUMBER(SEARCH("D0",Inputs!D11))=TRUE,Higher,IF(ISNUMBER(SEARCH("D1",Inputs!D11))=TRUE,Additional,IF(ISNUMBER(SEARCH("NT",Inputs!D11))=TRUE,0,"Standard")))) -> Standard
A35: Personal allowance | C35: =IF(ISNUMBER(SEARCH("L",Inputs!D11))=TRUE,LEFT(Inputs!D11,SEARCH("L",Inputs!D11)-1)*10,IF(ISNUMBER(SEARCH("k",Inputs!D11))=TRUE,RIGHT(Inputs!D11,LEN(Inputs!D11)-SEARCH("k",Inputs!D11))*-10,IF(ISNUMBER(SEARCH("T",Inputs!D11))=TRUE,LEFT(Inputs!D11,SEARCH("T",Inputs!D11)-1)*10,perallow))) -> 12570 | E35: 12570 | F35: Personal Allowance
A37: Taxable income
A38: - before opting out | C38: =D25-C35 -> -12570
A39: - after opting out | C39: =D24-C35 -> -12570
A42: Rate | B42: Lower limit | C42: Upper limit | D42: Taxable income falls within the band | F42: Tax amount
D43: Before opting out | E43: After opting out | F43: Before opting out | G43: After opting out
A44: 0.2 | B44: 0 | C44: 37700 | D44: =MAX(MIN($C44-$C43,C$38-$C43),0) -> 0 | E44: =MAX(MIN($C44-$C43,C$39-$C43),0) -> 0 | F44: =$A44*D44 -> 0 | G44: =$A44*E44 -> 0
A45: 0.4 | B45: =C44+1 -> 37701 | C45: 125140 | D45: =MAX(MIN($C45-$C44,C$38-$C44),0) -> 0 | E45: =MAX(MIN($C45-$C44,C$39-$C44),0) -> 0 | F45: =$A45*D45 -> 0 | G45: 0
A46: 0.45 | B46: =C45+1 -> 125141 | C46: 9999999 | D46: =MAX(MIN($C46-$C45,C$38-$C45),0) -> 0 | E46: =MAX(MIN($C46-$C45,C$39-$C45),0) -> 0 | F46: 0 | G46: 0
A48: Standard | F48: =SUM(F43:F46) -> 0 | G48: =SUM(G43:G46) -> 0
A49: =Basic -> 0.2 | F49: =Basic*$D$25 -> 0 | G49: =Basic*$D$24 -> 0
A50: =Higher -> 0.4 | F50: =Higher*$D$25 -> 0 | G50: =Higher*$D$24 -> 0
A51: =Additional -> 0.45 | F51: =Additional*$D$25 -> 0 | G51: =Additional*$D$24 -> 0
A52: 0 | F52: =A52*$D$25 -> 0 | G52: =A52*$D$24 -> 0
A55: National Insurance contributions - rates and allowance for 2023/24
A56: Copied from: | C56: Rates and allowances: National Insurance contributions - GOV.UK (www.gov.uk)
C58: £ per week | D58: £ per year | E58: £ per month
A59: Lower Earnings Limit | C59: 123 | D59: =C59*52 -> 6396
A60: Primary threshold (PT) | C60: 241.73 | D60: =C60*52 -> 12569.96
A61: Upper earnings limit (UEL) | C61: 966.73 | D61: =C61*52 -> 50269.96
A62: Rate between PT and UEL | C62: 0.12
A63: Rate above UEL | C63: 0.02
A65: Earnings between PT and UEL | D65: =IF(ActPay2016<=PT,0,IF(ActPay2016>UEL,UEL-PT,ActPay2016-PT)) -> 0 | E65: =D65/12 -> 0 | F65: =E65*NI_Cont -> 0
A66: Earnings above UEL | D66: =MAX(0,ActPay2016-D61) -> 0 | E66: =D66/12 -> 0 | F66: =E66*NI_cont_UEL -> 0
A68: National Insurance contribution | E68: =$E$65*$C$62+$E$66*$C$63 -> 0

Sheet Results
A1: NHS Pension Scheme 2015 (NHSPS 2015)
A2: Opt Out Calculator
A3: For the tax year 2023 to 2024
B6: Monthly Payments | C6: £ | D6: Deductions | E6: As a member of the NHS Pension Scheme or the 2015 NHS Pension Scheme | F6: After opting out
B7: Monthly salary | C7: =Inputs!D7/12 -> 0 | D7: Tax | E7: =VLOOKUP('Pension cont, income tax, NI'!C34,'Pension cont, income tax, NI'!$A$48:$G$52,6,FALSE)/12 -> 0 | F7: =VLOOKUP('Pension cont, income tax, NI'!C34,'Pension cont, income tax, NI'!$A$48:$G$52,7,FALSE)/12 -> 0
D8: N.I. Contribution | E8: ='Pension cont, income tax, NI'!E68 -> 0 | F8: ='Pension cont, income tax, NI'!E68 -> 0
D9: Pension contribution | E9: ='Pension cont, income tax, NI'!D22/12 -> 0 | F9: 0
B11: Total payments | C11: =SUM(C7:C10) -> 0 | D11: Total deductions | E11: =SUM(E7:E10) -> 0 | F11: =SUM(F7:F10) -> 0
D12: Net pay | E12: =$C11-E11 -> 0 | F12: =$C11-F11 -> 0
A15: Difference in net pay per month | F15: =F12-E12 -> 0
D18: Net annual pay | E18: =E12*12 -> 0 | F18: =F12*12 -> 0
A21: Benefits you will be giving up by opting out of the NHS Pensions Scheme or NHS Pension Scheme 2015
A22: - | B22: ='Pension cont, income tax, NI'!C28 -> 0
A23: - | B23: An annual pension payable for life after retirement
A24: - | B24: Tax free cash lump sum on retirement for those who have 1995 section membership of NHS Pension Scheme
B25: (optional for all other members of the NHS Pension Scheme and the NHS Pension Scheme 2015)
A26: - | B26: Death in service life assurance lump sum
A27: - | B27: Pension benefits payable to dependents including children
A28: - | B28: Ill-health retirement benefits
A29: - | B29: Tax relief on pension contributions
A32: More information about the benefits that the Scheme provides can be found in the NHS Pension Scheme Guide available on the website at: www.nhsbsa.nhs.uk/pensions or speak to your employer.
A35: Notes:
A36: - | B36: The calculator above is for illustrative purposes only.
A37: - | B37: The calculator above is based on the following inputs:
B38: - Actual pensionable earnings | E38: =ActPay2016 -> 0
B39: - Pension contribution rate | E39: =IF(ISBLANK(Inputs!D9),"Not completed - calculation uses "&TEXT('Pension cont, income tax, NI'!D21,"0.0%"),Inputs!D9) -> Not completed - calculation uses 5.1%
B40: - Tax code | E40: =IF(ISBLANK(Inputs!D11),"Not completed",Inputs!D11) -> Not completed
B42: =Inputs!B20 -> Calculator updated February 2023
